[Event "Early-Titled-Tuesday-Blitz-March-12-2024"]
[Site "Chess.com"]
[Date "2024.03.12"]
[Round "2"]
[White "Witty_Alien"]
[Black "Herman-NY"]
[Result "1-0"]
[WhiteElo "2329"]
[BlackElo "2539"]
[TimeControl "180+1"]
[EndTime "8:18:32 PDT"]
[Termination "Witty_Alien won by resignation"]

1. e4 {[%clk 0:03:00.7]} 1... e5 {[%clk 0:03:00]} 2. d4 {[%clk 0:02:59.8]} 2...
exd4 {[%clk 0:02:57.9]} 3. c3 {[%clk 0:02:59.7]} 3... d3 {[%clk 0:02:58]} 4.
Bxd3 {[%clk 0:02:58]} 4... Nc6 {[%clk 0:02:58.6]} 5. Nf3 {[%clk 0:02:56.2]} 5...
d6 {[%clk 0:02:56.6]} 6. O-O {[%clk 0:02:53.4]} 6... Nge7 {[%clk 0:02:51.5]} 7.
Bg5 {[%clk 0:02:43]} 7... h6 {[%clk 0:02:51.5]} 8. Bh4 {[%clk 0:02:43.5]} 8...
g5 {[%clk 0:02:51.2]} 9. Bg3 {[%clk 0:02:44.1]} 9... Ng6 {[%clk 0:02:51.7]} 10.
Nd4 {[%clk 0:02:28.3]} 10... Bg7 {[%clk 0:02:31.4]} 11. Qh5 {[%clk 0:02:15.6]}
11... Nxd4 {[%clk 0:02:21.7]} 12. cxd4 {[%clk 0:02:15.9]} 12... Bxd4 {[%clk
0:02:22.6]} 13. Nc3 {[%clk 0:02:03.5]} 13... c6 {[%clk 0:01:42.6]} 14. Rad1
{[%clk 0:01:34.9]} 14... Qf6 {[%clk 0:01:29.6]} 15. e5 {[%clk 0:01:27.2]} 15...
dxe5 {[%clk 0:01:22.7]} 16. Ne4 {[%clk 0:01:22.3]} 16... Qe7 {[%clk 0:01:22.6]}
17. Bc4 {[%clk 0:00:56]} 17... c5 {[%clk 0:00:57.4]} 18. Bb5+ {[%clk 0:00:39.6]}
18... Kf8 {[%clk 0:00:57.1]} 19. Rfe1 {[%clk 0:00:36.4]} 19... Kg7 {[%clk
0:00:56.6]} 20. h4 {[%clk 0:00:21.6]} 20... Bf5 {[%clk 0:00:38.6]} 21. Qf3
{[%clk 0:00:14.6]} 21... Bxe4 {[%clk 0:00:27.7]} 22. Rxe4 {[%clk 0:00:14.8]}
22... gxh4 {[%clk 0:00:24.6]} 23. Bh2 {[%clk 0:00:10]} 23... Rad8 {[%clk
0:00:22.6]} 24. Bc4 {[%clk 0:00:10]} 24... Rd6 {[%clk 0:00:20.2]} 25. Rg4 {[%clk
0:00:09.9]} 25... Rf6 {[%clk 0:00:18.7]} 26. Qe4 {[%clk 0:00:05.6]} 26... Bxf2+
{[%clk 0:00:14.9]} 27. Kh1 {[%clk 0:00:06.2]} 27... Bd4 {[%clk 0:00:14.5]} 28.
Rxd4 {[%clk 0:00:05.8]} 28... cxd4 {[%clk 0:00:13.8]} 29. Bxe5 {[%clk
0:00:06.2]} 29... Re8 {[%clk 0:00:11.1]} 30. Bxf6+ {[%clk 0:00:02.6]} 30... Kxf6
{[%clk 0:00:12]} 31. Rxg6+ {[%clk 0:00:02.3]} 31... fxg6 {[%clk 0:00:10.7]} 32.
Qxd4+ {[%clk 0:00:02.7]} 32... Qe5 {[%clk 0:00:09.9]} 33. Qf2+ {[%clk
0:00:03.2]} 33... Qf5 {[%clk 0:00:08.8]} 34. Qd4+ {[%clk 0:00:02.1]} 34... Kg5
{[%clk 0:00:08.9]} 35. Qd2+ {[%clk 0:00:02]} 35... Qf4 {[%clk 0:00:06.9]} 36.
Qd5+ {[%clk 0:00:02.4]} 36... Re5 {[%clk 0:00:05.5]} 37. Qd8+ {[%clk 0:00:02.4]}
37... Qf6 {[%clk 0:00:05.7]} 38. Qd2+ {[%clk 0:00:02]} 38... Kh5 {[%clk
0:00:04.7]} 39. Be2+ {[%clk 0:00:02.5]} 39... Rxe2 {[%clk 0:00:04.8]} 40. Qxe2+
{[%clk 0:00:03]} 40... Kg5 {[%clk 0:00:05.7]} 41. Qe3+ {[%clk 0:00:03]} 41...
Qf4 {[%clk 0:00:05.9]} 42. Qxa7 {[%clk 0:00:03.2]} 42... Qf1+ {[%clk 0:00:04.9]}
43. Kh2 {[%clk 0:00:03.4]} 43... Qf4+ {[%clk 0:00:05]} 44. Kh1 {[%clk 0:00:04]}
44... h5 {[%clk 0:00:04.8]} 45. Qxb7 {[%clk 0:00:03.2]} 45... Qc1+ {[%clk
0:00:04.2]} 46. Kh2 {[%clk 0:00:03.4]} 46... Qf4+ {[%clk 0:00:05.1]} 47. Kg1
{[%clk 0:00:03.1]} 47... Qe3+ {[%clk 0:00:05]} 48. Kf1 {[%clk 0:00:03.1]} 48...
Qf4+ {[%clk 0:00:04.7]} 49. Qf3 {[%clk 0:00:03.4]} 49... Qc1+ {[%clk 0:00:03.6]}
50. Kf2 {[%clk 0:00:03.9]} 50... Qxb2+ {[%clk 0:00:03.9]} 51. Qe2 {[%clk
0:00:04.6]} 51... Qd4+ {[%clk 0:00:03.9]} 52. Qe3+ {[%clk 0:00:05.1]} 52...
Qxe3+ {[%clk 0:00:04.5]} 53. Kxe3 {[%clk 0:00:06]} 53... Kf5 {[%clk 0:00:04.9]}
54. a4 {[%clk 0:00:06.1]} 54... Ke5 {[%clk 0:00:05.1]} 55. a5 {[%clk 0:00:06.8]}
55... Kd6 {[%clk 0:00:05.2]} 56. a6 {[%clk 0:00:07.6]} 56... Kc6 {[%clk
0:00:05.1]} 57. Kf4 {[%clk 0:00:08.4]} 57... Kb6 {[%clk 0:00:04.4]} 58. Kg5
{[%clk 0:00:09]} 58... Kxa6 {[%clk 0:00:04.4]} 59. Kxg6 {[%clk 0:00:09.3]} 59...
h3 {[%clk 0:00:04.8]} 60. gxh3 {[%clk 0:00:08]} 60... h4 {[%clk 0:00:05.2]} 61.
Kh5 {[%clk 0:00:08.2]} 61... Kb5 {[%clk 0:00:06.1]} 62. Kxh4 {[%clk 0:00:08.9]}
62... Kc6 {[%clk 0:00:07]} 63. Kg5 {[%clk 0:00:09.7]} 63... Kd7 {[%clk
0:00:07.9]} 64. Kg6 {[%clk 0:00:10.5]} 64... Ke8 {[%clk 0:00:08.8]} 65. Kg7
{[%clk 0:00:11.1]} 1-0

[Event "Early-Titled-Tuesday-Blitz-March-12-2024"]
[Site "Chess.com"]
[Date "2024.03.12"]
[Round "2"]
[White "dropstoneDP"]
[Black "NikitaShnadrygin"]
[Result "1-0"]
[WhiteElo "3002"]
[BlackElo "2681"]
[TimeControl "180+1"]
[EndTime "8:18:33 PDT"]
[Termination "dropstoneDP won on time"]

1. e4 {[%clk 0:03:00.9]} 1... c5 {[%clk 0:02:52.3]} 2. Nf3 {[%clk 0:02:57.9]}
2... e6 {[%clk 0:02:44.6]} 3. b3 {[%clk 0:02:55.8]} 3... Nc6 {[%clk 0:02:42]} 4.
Bb2 {[%clk 0:02:49.9]} 4... d5 {[%clk 0:02:34]} 5. exd5 {[%clk 0:02:48.5]} 5...
exd5 {[%clk 0:02:34.9]} 6. Bb5 {[%clk 0:02:45.4]} 6... Ne7 {[%clk 0:02:34.4]} 7.
O-O {[%clk 0:02:40.8]} 7... a6 {[%clk 0:02:34]} 8. Bxc6+ {[%clk 0:02:35.9]} 8...
Nxc6 {[%clk 0:02:33.3]} 9. d4 {[%clk 0:02:32.1]} 9... cxd4 {[%clk 0:01:59.2]}
10. Nxd4 {[%clk 0:02:27]} 10... Be7 {[%clk 0:01:58.9]} 11. Nxc6 {[%clk
0:02:15.3]} 11... bxc6 {[%clk 0:01:57.5]} 12. Bxg7 {[%clk 0:01:51.1]} 12... Rg8
{[%clk 0:01:57.5]} 13. Be5 {[%clk 0:01:51.7]} 13... Bh3 {[%clk 0:01:34.7]} 14.
Bg3 {[%clk 0:01:48.3]} 14... Bf6 {[%clk 0:01:34.7]} 15. Re1+ {[%clk 0:01:29.9]}
15... Be6 {[%clk 0:01:29.4]} 16. Nd2 {[%clk 0:01:23.5]} 16... Bxa1 {[%clk
0:01:24.8]} 17. Qxa1 {[%clk 0:01:23.8]} 17... Qg5 {[%clk 0:01:01.5]} 18. Nf3
{[%clk 0:01:23]} 18... Qg6 {[%clk 0:00:29.6]} 19. c4 {[%clk 0:01:19.3]} 19...
Rd8 {[%clk 0:00:24.1]} 20. Qc3 {[%clk 0:01:12.9]} 20... dxc4 {[%clk 0:00:19.7]}
21. Qxc4 {[%clk 0:01:09.8]} 21... Kf8 {[%clk 0:00:09.5]} 22. Qxc6 {[%clk
0:01:04]} 22... Bd5 {[%clk 0:00:06.2]} 23. Qc5+ {[%clk 0:00:55.5]} 23... Kg7
{[%clk 0:00:06.3]} 24. Ne5 {[%clk 0:00:52.3]} 24... Qe6 {[%clk 0:00:04.2]} 25.
Qc3 {[%clk 0:00:48.2]} 25... f6 {[%clk 0:00:03.7]} 26. Nd3 {[%clk 0:00:42]}
26... Qf7 {[%clk 0:00:02.3]} 27. Nf4 {[%clk 0:00:41.4]} 27... Rge8 {[%clk
0:00:01.5]} 28. Rf1 {[%clk 0:00:41]} 28... Be4 {[%clk 0:00:02]} 29. h3 {[%clk
0:00:39.6]} 29... Kg8 {[%clk 0:00:01.9]} 30. Qa5 {[%clk 0:00:38.6]} 30... Bd3
{[%clk 0:00:01.5]} 31. Rc1 {[%clk 0:00:38]} 31... Bg6 {[%clk 0:00:01.6]} 32.
Qxa6 {[%clk 0:00:37.8]} 32... Rd7 {[%clk 0:00:01.3]} 33. Qb5 {[%clk 0:00:35.3]}
33... Red8 {[%clk 0:00:01.9]} 34. Kh2 {[%clk 0:00:33.4]} 34... Rd1 {[%clk
0:00:02.5]} 35. Rxd1 {[%clk 0:00:32.7]} 35... Rxd1 {[%clk 0:00:03.4]} 36. a4
{[%clk 0:00:33.3]} 36... Qd7 {[%clk 0:00:02.8]} 37. Qc4+ {[%clk 0:00:30]} 37...
Kg7 {[%clk 0:00:02.4]} 38. Ne6+ {[%clk 0:00:24.4]} 38... Kh8 {[%clk 0:00:02.3]}
39. Nc5 {[%clk 0:00:22.3]} 39... Qf7 {[%clk 0:00:02]} 40. Qxf7 {[%clk
0:00:20.2]} 40... Bxf7 {[%clk 0:00:02]} 41. a5 {[%clk 0:00:20.9]} 41... Rc1
{[%clk 0:00:01.1]} 42. b4 {[%clk 0:00:20.9]} 42... Rb1 {[%clk 0:00:01.4]} 43. a6
{[%clk 0:00:16.9]} 43... Rxb4 {[%clk 0:00:01.6]} 44. a7 {[%clk 0:00:17.6]} 44...
Bd5 {[%clk 0:00:02.3]} 45. Bc7 {[%clk 0:00:15.8]} 45... Rb5 {[%clk 0:00:02.8]}
46. Nd7 {[%clk 0:00:14]} 46... Rb1 {[%clk 0:00:02.4]} 47. Nxf6 {[%clk
0:00:09.6]} 47... Bc6 {[%clk 0:00:02.7]} 48. Be5 {[%clk 0:00:10.3]} 48... Kg7
{[%clk 0:00:02.7]} 49. Nd5+ {[%clk 0:00:09.7]} 49... Kf7 {[%clk 0:00:02.8]} 50.
Ne3 {[%clk 0:00:10.2]} 50... Re1 {[%clk 0:00:01.7]} 51. Bc3 {[%clk 0:00:09.8]}
1-0

[Event "Early-Titled-Tuesday-Blitz-March-12-2024"]
[Site "Chess.com"]
[Date "2024.03.12"]
[Round "2"]
[White "josephymwale33"]
[Black "SuperPower2011"]
[Result "0-1"]
[WhiteElo "2514"]
[BlackElo "2814"]
[TimeControl "180+1"]
[EndTime "8:18:33 PDT"]
[Termination "SuperPower2011 won by resignation"]

1. e4 {[%clk 0:03:00.9]} 1... c5 {[%clk 0:02:55.1]} 2. Nf3 {[%clk 0:03:00.9]}
2... d6 {[%clk 0:02:55.2]} 3. c3 {[%clk 0:03:00.9]} 3... Nf6 {[%clk 0:02:55.1]}
4. Be2 {[%clk 0:03:01.5]} 4... Nc6 {[%clk 0:02:44]} 5. d4 {[%clk 0:03:01.4]}
5... cxd4 {[%clk 0:02:44.5]} 6. cxd4 {[%clk 0:03:02.3]} 6... Nxe4 {[%clk
0:02:40.8]} 7. d5 {[%clk 0:03:02.6]} 7... Qa5+ {[%clk 0:02:41.1]} 8. Nc3 {[%clk
0:03:03.2]} 8... Nxc3 {[%clk 0:02:32.9]} 9. bxc3 {[%clk 0:03:04.1]} 9... Ne5
{[%clk 0:02:33.1]} 10. O-O {[%clk 0:03:04.5]} 10... g6 {[%clk 0:02:21.2]} 11.
Nxe5 {[%clk 0:03:01.8]} 11... dxe5 {[%clk 0:02:22.1]} 12. Qb3 {[%clk 0:02:59.1]}
12... a6 {[%clk 0:02:19.4]} 13. Be3 {[%clk 0:02:56.9]} 13... Qc7 {[%clk
0:02:09.1]} 14. Bb6 {[%clk 0:02:54.6]} 14... Qd7 {[%clk 0:01:55.3]} 15. Rad1
{[%clk 0:02:20.2]} 15... Bg7 {[%clk 0:01:52.9]} 16. d6 {[%clk 0:02:17.9]} 16...
exd6 {[%clk 0:01:26.1]} 17. Bc5 {[%clk 0:02:00.3]} 17... O-O {[%clk 0:00:52.3]}
18. Bxd6 {[%clk 0:01:57.9]} 18... Re8 {[%clk 0:00:48.1]} 19. Bxe5 {[%clk
0:01:52.6]} 19... Qe6 {[%clk 0:00:48.6]} 20. Bxg7 {[%clk 0:01:34.4]} 20... Qxb3
{[%clk 0:00:35]} 21. axb3 {[%clk 0:01:35.3]} 21... Kxg7 {[%clk 0:00:35.6]} 22.
Bf3 {[%clk 0:01:35.1]} 22... Rb8 {[%clk 0:00:36.2]} 23. Rd6 {[%clk 0:01:33.5]}
23... Be6 {[%clk 0:00:31.8]} 24. c4 {[%clk 0:01:31.1]} 24... Kf8 {[%clk
0:00:30.3]} 25. Rfd1 {[%clk 0:01:29.8]} 25... Rec8 {[%clk 0:00:29]} 26. h4
{[%clk 0:01:27.3]} 26... h5 {[%clk 0:00:23.5]} 27. Rb6 {[%clk 0:01:21.2]} 27...
Rc7 {[%clk 0:00:23.1]} 28. Be4 {[%clk 0:01:19.8]} 28... Ke7 {[%clk 0:00:22]} 29.
Rdd6 {[%clk 0:01:09.5]} 29... Bc8 {[%clk 0:00:05.1]} 30. Rf6 {[%clk 0:01:04.2]}
30... Be6 {[%clk 0:00:05.1]} 31. Rf3 {[%clk 0:00:57.4]} 31... a5 {[%clk
0:00:05.3]} 32. Re3 {[%clk 0:00:49]} 32... a4 {[%clk 0:00:02.3]} 33. bxa4 {[%clk
0:00:49.8]} 33... Kd7 {[%clk 0:00:01]} 34. Bxg6 {[%clk 0:00:42]} 34... Bxc4
{[%clk 0:00:01.7]} 35. Bxh5 {[%clk 0:00:40.8]} 35... Rc6 {[%clk 0:00:01.8]} 36.
Bg4+ {[%clk 0:00:35.3]} 36... Kc7 {[%clk 0:00:02.3]} 37. Rxc6+ {[%clk
0:00:33.8]} 37... bxc6 {[%clk 0:00:03.2]} 38. Rc3 {[%clk 0:00:33.8]} 38... Bd5
{[%clk 0:00:03.2]} 39. Bf3 {[%clk 0:00:33.9]} 39... Bxf3 {[%clk 0:00:03.9]} 40.
Rxf3 {[%clk 0:00:34]} 40... Rb4 {[%clk 0:00:04.8]} 41. Rxf7+ {[%clk 0:00:34.2]}
41... Kb6 {[%clk 0:00:05.5]} 42. h5 {[%clk 0:00:33.6]} 42... Rh4 {[%clk
0:00:05.8]} 43. Rf5 {[%clk 0:00:32.7]} 43... Rxa4 {[%clk 0:00:05.9]} 44. Kh2
{[%clk 0:00:29.9]} 44... c5 {[%clk 0:00:04.1]} 45. Kh3 {[%clk 0:00:26.1]} 45...
c4 {[%clk 0:00:04.3]} 46. Rf8 {[%clk 0:00:21.6]} 46... Ra7 {[%clk 0:00:02.9]}
47. Rf3 {[%clk 0:00:19.8]} 47... Kc5 {[%clk 0:00:01.2]} 48. Rc3 {[%clk
0:00:20.4]} 48... Kb4 {[%clk 0:00:01.6]} 49. Rc1 {[%clk 0:00:21]} 49... c3
{[%clk 0:00:02.2]} 50. g4 {[%clk 0:00:21.4]} 50... Kb3 {[%clk 0:00:02.6]} 51.
Kh4 {[%clk 0:00:21.5]} 51... Kb2 {[%clk 0:00:03.5]} 52. Rg1 {[%clk 0:00:21.1]}
52... c2 {[%clk 0:00:04.4]} 53. g5 {[%clk 0:00:21.4]} 53... Rd7 {[%clk
0:00:05.1]} 54. h6 {[%clk 0:00:20.4]} 54... Rd1 {[%clk 0:00:05.3]} 55. Rg2
{[%clk 0:00:10.5]} 55... Rh1+ {[%clk 0:00:04.5]} 56. Kg3 {[%clk 0:00:09.8]}
56... c1=Q {[%clk 0:00:05.4]} 57. Rh2 {[%clk 0:00:10.3]} 57... Qxg5+ {[%clk
0:00:05.4]} 0-1

[Event "Early-Titled-Tuesday-Blitz-March-12-2024"]
[Site "Chess.com"]
[Date "2024.03.12"]
[Round "2"]
[White "AttilaTurzo"]
[Black "LiamPutnam2008"]
[Result "0-1"]
[WhiteElo "2465"]
[BlackElo "2890"]
[TimeControl "180+1"]
[EndTime "8:18:34 PDT"]
[Termination "LiamPutnam2008 won by resignation"]

1. d4 {[%clk 0:02:57.1]} 1... Nf6 {[%clk 0:02:57.3]} 2. Bf4 {[%clk 0:02:56]}
2... g6 {[%clk 0:02:55.8]} 3. Nf3 {[%clk 0:02:52.3]} 3... Bg7 {[%clk 0:02:55.9]}
4. c3 {[%clk 0:02:52.7]} 4... O-O {[%clk 0:02:56.1]} 5. Nbd2 {[%clk 0:02:53.1]}
5... d6 {[%clk 0:02:56.6]} 6. e4 {[%clk 0:02:53.2]} 6... Nbd7 {[%clk 0:02:57.4]}
7. h3 {[%clk 0:02:52.9]} 7... b6 {[%clk 0:02:57.4]} 8. Be2 {[%clk 0:02:51.5]}
8... Bb7 {[%clk 0:02:57.9]} 9. Qc2 {[%clk 0:02:52]} 9... e5 {[%clk 0:02:52.8]}
10. dxe5 {[%clk 0:02:51.8]} 10... dxe5 {[%clk 0:02:53.7]} 11. Be3 {[%clk
0:02:52.3]} 11... Qe7 {[%clk 0:02:53.4]} 12. O-O {[%clk 0:02:47.4]} 12... Rad8
{[%clk 0:02:53.8]} 13. b4 {[%clk 0:02:46]} 13... Nh5 {[%clk 0:02:52.3]} 14. Rfd1
{[%clk 0:02:41.6]} 14... Nf4 {[%clk 0:02:51.4]} 15. Bf1 {[%clk 0:02:42]} 15...
f5 {[%clk 0:02:51.4]} 16. Re1 {[%clk 0:02:32.8]} 16... fxe4 {[%clk 0:02:50.6]}
17. Nxe4 {[%clk 0:02:30.5]} 17... Kh8 {[%clk 0:02:41.6]} 18. Bxf4 {[%clk
0:02:19.9]} 18... Rxf4 {[%clk 0:02:40.4]} 19. Nfd2 {[%clk 0:02:16.9]} 19... Rdf8
{[%clk 0:02:39.1]} 20. g3 {[%clk 0:02:16.9]} 20... R4f7 {[%clk 0:02:36]} 21. Bg2
{[%clk 0:02:15.6]} 21... Bh6 {[%clk 0:02:16.9]} 22. Nc4 {[%clk 0:01:58.8]} 22...
Nf6 {[%clk 0:02:08.8]} 23. Nxf6 {[%clk 0:01:50.1]} 23... Bxg2 {[%clk 0:02:08.3]}
24. Ng4 {[%clk 0:01:34.4]} 24... Bxh3 {[%clk 0:01:55.7]} 25. Ncxe5 {[%clk
0:01:25.2]} 25... Bxg4 {[%clk 0:01:45.6]} 26. Nxg6+ {[%clk 0:01:14.9]} 26...
hxg6 {[%clk 0:01:46.5]} 27. Rxe7 {[%clk 0:01:14.8]} 27... Rxe7 {[%clk
0:01:47.4]} 28. Qxg6 {[%clk 0:01:14.9]} 28... Bf3 {[%clk 0:01:45.2]} 29. Qxh6+
{[%clk 0:01:12.6]} 29... Kg8 {[%clk 0:01:45.9]} 30. Qg5+ {[%clk 0:00:47.7]}
30... Rg7 {[%clk 0:01:45.6]} 31. Qe5 {[%clk 0:00:29.8]} 31... Rh7 {[%clk
0:01:45.4]} 32. Qg5+ {[%clk 0:00:15.5]} 32... Rg7 {[%clk 0:01:10]} 33. Qe5
{[%clk 0:00:12]} 33... Rg6 {[%clk 0:00:55.1]} 34. Re1 {[%clk 0:00:10.2]} 34...
Rf7 {[%clk 0:00:46.1]} 35. Re3 {[%clk 0:00:09.3]} 35... Bc6 {[%clk 0:00:43.2]}
36. f4 {[%clk 0:00:09.1]} 36... Rd6 {[%clk 0:00:35.7]} 37. Qg5+ {[%clk
0:00:08.1]} 37... Rg7 {[%clk 0:00:35.4]} 38. Qe5 {[%clk 0:00:05]} 38... Rh7
{[%clk 0:00:31.8]} 39. Qg5+ {[%clk 0:00:01.5]} 39... Kf8 {[%clk 0:00:28]} 40.
Re5 {[%clk 0:00:01.4]} 40... Rf7 {[%clk 0:00:12.8]} 41. Rf5 {[%clk 0:00:01.2]}
41... Rd1+ {[%clk 0:00:08.2]} 42. Kf2 {[%clk 0:00:01.2]} 42... Rd2+ {[%clk
0:00:08.8]} 43. Ke3 {[%clk 0:00:01.7]} 43... Rd6 {[%clk 0:00:08.8]} 44. Rxf7+
{[%clk 0:00:01.9]} 44... Kxf7 {[%clk 0:00:09.7]} 45. Qh5+ {[%clk 0:00:02.5]}
45... Ke7 {[%clk 0:00:09.9]} 46. Qh7+ {[%clk 0:00:02.9]} 46... Kd8 {[%clk
0:00:10.3]} 47. Qh8+ {[%clk 0:00:03.5]} 47... Kd7 {[%clk 0:00:10.7]} 48. Qb8
{[%clk 0:00:03.7]} 48... Re6+ {[%clk 0:00:10.6]} 49. Kf2 {[%clk 0:00:04.2]}
49... a6 {[%clk 0:00:10.2]} 50. Qf8 {[%clk 0:00:03.9]} 50... Bb5 {[%clk
0:00:10.4]} 51. Qf7+ {[%clk 0:00:03.8]} 51... Re7 {[%clk 0:00:10.6]} 52. Qd5+
{[%clk 0:00:04.1]} 52... Ke8 {[%clk 0:00:10.6]} 53. f5 {[%clk 0:00:04.5]} 53...
Rd7 {[%clk 0:00:11]} 54. Qe6+ {[%clk 0:00:04.6]} 54... Re7 {[%clk 0:00:11.6]}
55. Qc8+ {[%clk 0:00:04.9]} 55... Kf7 {[%clk 0:00:11.8]} 56. Qh8 {[%clk
0:00:05.2]} 56... Re2+ {[%clk 0:00:11.3]} 57. Kf3 {[%clk 0:00:04.6]} 57... Re7
{[%clk 0:00:12.2]} 58. g4 {[%clk 0:00:04.8]} 58... Be2+ {[%clk 0:00:12.7]} 59.
Kf4 {[%clk 0:00:05]} 59... Bd3 {[%clk 0:00:12.9]} 60. Qh7+ {[%clk 0:00:04.6]}
60... Ke8 {[%clk 0:00:12.6]} 61. f6 {[%clk 0:00:05.2]} 61... Rxh7 {[%clk
0:00:12.5]} 62. g5 {[%clk 0:00:05.4]} 62... Kf7 {[%clk 0:00:11.5]} 0-1

[Event "Early-Titled-Tuesday-Blitz-March-12-2024"]
[Site "Chess.com"]
[Date "2024.03.12"]
[Round "2"]
[White "Sychev_on_YouTube"]
[Black "nekotyanof"]
[Result "1-0"]
[WhiteElo "2927"]
[BlackElo "2646"]
[TimeControl "180+1"]
[EndTime "8:18:37 PDT"]
[Termination "Sychev_on_YouTube won by resignation"]

1. e4 {[%clk 0:02:59.7]} 1... c5 {[%clk 0:03:00]} 2. Nf3 {[%clk 0:02:59.8]} 2...
Nc6 {[%clk 0:03:00.6]} 3. d4 {[%clk 0:02:59.8]} 3... cxd4 {[%clk 0:03:01.1]} 4.
Nxd4 {[%clk 0:03:00.7]} 4... Nf6 {[%clk 0:03:01.5]} 5. Nc3 {[%clk 0:03:01.1]}
5... e5 {[%clk 0:03:02.2]} 6. Ndb5 {[%clk 0:03:01.5]} 6... d6 {[%clk 0:03:02.9]}
7. Bg5 {[%clk 0:03:01.9]} 7... a6 {[%clk 0:03:02.8]} 8. Na3 {[%clk 0:03:02.5]}
8... b5 {[%clk 0:03:03.5]} 9. Bxf6 {[%clk 0:03:03.2]} 9... gxf6 {[%clk
0:03:03.7]} 10. Nd5 {[%clk 0:03:03.9]} 10... f5 {[%clk 0:03:04.3]} 11. g3 {[%clk
0:03:04]} 11... Bg7 {[%clk 0:03:04.1]} 12. exf5 {[%clk 0:03:04]} 12... Bxf5
{[%clk 0:02:59.7]} 13. Bg2 {[%clk 0:03:04.3]} 13... Rc8 {[%clk 0:02:57.3]} 14.
c3 {[%clk 0:03:04.5]} 14... O-O {[%clk 0:02:57.1]} 15. Nc2 {[%clk 0:03:04.8]}
15... Be6 {[%clk 0:02:47]} 16. a4 {[%clk 0:03:04.6]} 16... bxa4 {[%clk
0:02:43.8]} 17. Rxa4 {[%clk 0:03:05.5]} 17... a5 {[%clk 0:02:44.5]} 18. Rh4
{[%clk 0:02:57.8]} 18... Ne7 {[%clk 0:01:56.9]} 19. Nce3 {[%clk 0:02:46.9]}
19... Ng6 {[%clk 0:01:56]} 20. Rh5 {[%clk 0:02:41]} 20... f5 {[%clk 0:01:52.8]}
21. Bh3 {[%clk 0:02:34.5]} 21... Rc5 {[%clk 0:01:40.2]} 22. O-O {[%clk
0:02:09.8]} 22... Qd7 {[%clk 0:01:34.9]} 23. b4 {[%clk 0:01:31.9]} 23... axb4
{[%clk 0:01:34.1]} 24. cxb4 {[%clk 0:01:30.4]} 24... Rb5 {[%clk 0:01:32.7]} 25.
Qd3 {[%clk 0:01:13.9]} 25... e4 {[%clk 0:01:25]} 26. Qd1 {[%clk 0:01:10.7]}
26... Ne5 {[%clk 0:01:20.9]} 27. Nf4 {[%clk 0:01:06.5]} 27... Nf3+ {[%clk
0:01:00.3]} 28. Kh1 {[%clk 0:01:05.4]} 28... h6 {[%clk 0:00:52]} 29. Qe2 {[%clk
0:00:48.2]} 29... Rxb4 {[%clk 0:00:48.3]} 30. Nxe6 {[%clk 0:00:47.6]} 30... Qxe6
{[%clk 0:00:39.6]} 31. Rxf5 {[%clk 0:00:45.3]} 31... Qb3 {[%clk 0:00:25.3]} 32.
Rd5 {[%clk 0:00:20.4]} 32... Rd4 {[%clk 0:00:19.5]} 33. Be6+ {[%clk 0:00:18.5]}
33... Kh8 {[%clk 0:00:20.1]} 34. Rxd6 {[%clk 0:00:11.1]} 34... Qd3 {[%clk
0:00:16.6]} 35. Qxd3 {[%clk 0:00:10.8]} 35... Rxd3 {[%clk 0:00:17.3]} 36. Rxd3
{[%clk 0:00:06.9]} 36... exd3 {[%clk 0:00:18.2]} 37. Rd1 {[%clk 0:00:06.9]}
37... Nd4 {[%clk 0:00:14.8]} 38. Bd5 {[%clk 0:00:05.3]} 38... Rxf2 {[%clk
0:00:10.2]} 39. Rxd3 {[%clk 0:00:05.6]} 39... Ne2 {[%clk 0:00:08.8]} 40. Bc4
{[%clk 0:00:03.3]} 40... h5 {[%clk 0:00:06.1]} 41. Rd8+ {[%clk 0:00:02.6]} 41...
Kh7 {[%clk 0:00:06.7]} 42. Bd3+ {[%clk 0:00:02.9]} 42... Kh6 {[%clk 0:00:06.7]}
43. Rd6+ {[%clk 0:00:02.4]} 43... Bf6 {[%clk 0:00:04.3]} 44. Bxe2 {[%clk
0:00:02.6]} 44... Rxe2 {[%clk 0:00:04.9]} 45. Rxf6+ {[%clk 0:00:02.9]} 45... Kg5
{[%clk 0:00:05.5]} 46. Re6 {[%clk 0:00:03.5]} 46... h4 {[%clk 0:00:06.4]} 47.
Kg1 {[%clk 0:00:03.4]} 47... h3 {[%clk 0:00:04.9]} 48. Re5+ {[%clk 0:00:03.1]}
48... Kg6 {[%clk 0:00:04.3]} 49. Re6+ {[%clk 0:00:03.2]} 49... Kg5 {[%clk
0:00:04.5]} 50. Re8 {[%clk 0:00:03.8]} 50... Ra2 {[%clk 0:00:02.1]} 51. Rg8+
{[%clk 0:00:03.7]} 51... Kh5 {[%clk 0:00:02]} 52. Rh8+ {[%clk 0:00:04.2]} 52...
Kg5 {[%clk 0:00:02.5]} 53. Rxh3 {[%clk 0:00:04.6]} 53... Ra3 {[%clk 0:00:03.2]}
54. Nf1 {[%clk 0:00:05]} 54... Kg4 {[%clk 0:00:02.9]} 55. Rh8 {[%clk 0:00:05.4]}
55... Ra2 {[%clk 0:00:02.4]} 56. Rg8+ {[%clk 0:00:05.9]} 56... Kf3 {[%clk
0:00:02.8]} 57. Rf8+ {[%clk 0:00:06.2]} 57... Kg4 {[%clk 0:00:03.5]} 58. Rf2
{[%clk 0:00:06.5]} 58... Ra1 {[%clk 0:00:03.2]} 59. Kg2 {[%clk 0:00:07]} 1-0